{"text_format":"3","workbook":"xlsx","n_sheets":4,"sheets":["Összegzés","Összesítés","Bevételek","Költségek"],"not_rendered":{"defined_names":13},"read":"whole","date_system":"1900"}

{"sheet":"Összegzés","index":0,"n_rows":6,"n_cols":3,"rows_kept":6,"merged":[[0,1,0,2],[1,1,1,2]]}
[null,"HAVI CSALÁDI KÖLTSÉGVETÉS"]
[null,"ÖSSZEGZÉS"]
[null,"Egyenleg","Összeg"]
[null,"Tervezett egyenleg (tervezett bevétel mínusz kiadások)",{"$f":"TervezettBevétel-TervezettKöltségek","v":{"v":1114,"d":"1,114 Ft"}}]
[null,"Tényleges egyenleg (tényleges bevétel mínusz kiadások)",{"$f":"TénylegesJövedelem-TénylegesKöltségek","v":{"v":997,"d":"997 Ft"}}]
[null,"Különbözet (tényleges mínusz tervezett)",{"$f":"TénylegesEgyenleg-TervezettEgyenleg","v":{"v":-117,"d":"-117 Ft"}}]

{"sheet":"Összesítés","index":1,"n_rows":6,"n_cols":3,"rows_kept":6,"merged":[[0,1,0,2],[1,1,1,2]]}
[null,{"$f":"Munkafüzet_címe","v":"HAVI CSALÁDI KÖLTSÉGVETÉS"}]
[null,"Összesítés"]
[null,"Összesítés","Összeg"]
[null,"Teljes tervezett költség",{"$f":"TervezettKöltségek","v":{"v":4486,"d":"4,486 Ft"}}]
[null,"Teljes tényleges költség",{"$f":"TénylegesKöltségek","v":{"v":4603,"d":"4,603 Ft"}}]
[null,"Teljes különbözet",{"$f":"C4-C5","v":{"v":-117,"d":"-117 Ft"}}]

{"sheet":"Bevételek","index":2,"n_rows":7,"n_cols":5,"rows_kept":7,"merged":[[0,1,0,4],[1,1,1,4]]}
[null,{"$f":"Munkafüzet_címe","v":"HAVI CSALÁDI KÖLTSÉGVETÉS"}]
[null,"BEVÉTELEK"]
[null,"Tervezett bevétel","Tervezett","Tényleges","Különbség"]
[null,"Bevétel 1",{"v":4000,"d":"4,000.00 Ft"},{"v":4000,"d":"4,000.00 Ft"},{"$f":"BevételTáblázat[[#This Row],[Tervezett]]-BevételTáblázat[[#This Row],[Tényleges]]","v":{"v":0,"d":"0.00 Ft"}}]
[null,"Bevétel 2",{"v":1300,"d":"1,300.00 Ft"},{"v":1300,"d":"1,300.00 Ft"},{"$f":"BevételTáblázat[[#This Row],[Tervezett]]-BevételTáblázat[[#This Row],[Tényleges]]","v":{"v":0,"d":"0.00 Ft"}}]
[null,"Plusz bevétel",{"v":300,"d":"300.00 Ft"},{"v":300,"d":"300.00 Ft"},{"$f":"BevételTáblázat[[#This Row],[Tervezett]]-BevételTáblázat[[#This Row],[Tényleges]]","v":{"v":0,"d":"0.00 Ft"}}]
[null,"Teljes havi bevétel",{"$f":"SUBTOTAL(109,BevételTáblázat[Tervezett])","v":{"v":5600,"d":"5,600.00 Ft"}},{"$f":"SUBTOTAL(109,BevételTáblázat[Tényleges])","v":{"v":5600,"d":"5,600.00 Ft"}},{"$f":"SUBTOTAL(109,BevételTáblázat[Különbség])","v":{"v":0,"d":"0.00 Ft"}}]

{"sheet":"Költségek","index":3,"n_rows":80,"n_cols":6,"rows_kept":80,"merged":[[0,1,0,5],[1,1,1,5],[2,1,2,5]]}
[null,{"$f":"Munkafüzet_címe","v":"HAVI CSALÁDI KÖLTSÉGVETÉS"}]
[null,"KÖLTSÉGEK"]
[]
[null,"Kategória","Alkategória","Tervezett","Tényleges","Különbség"]
[null,"Szállás","Jelzálog vagy bérleti díj",{"v":1000,"d":"1,000.00 Ft"},{"v":1000,"d":"1,000.00 Ft"},{"$f":"KöltségekTáblázat[[#This Row],[Tervezett]]-KöltségekTáblázat[[#This Row],[Tényleges]]","v":{"v":0,"d":"0.00 Ft"}}]
[null,"Szállás","Második jelzálog vagy bérleti díj",{"v":0,"d":"0.00 Ft"},{"v":0,"d":"0.00 Ft"},{"$f":"KöltségekTáblázat[[#This Row],[Tervezett]]-KöltségekTáblázat[[#This Row],[Tényleges]]","v":{"v":0,"d":"0.00 Ft"}}]
[null,"Szállás","Telefon",{"v":54,"d":"54.00 Ft"},{"v":100,"d":"100.00 Ft"},{"$f":"KöltségekTáblázat[[#This Row],[Tervezett]]-KöltségekTáblázat[[#This Row],[Tényleges]]","v":{"v":-46,"d":"-46.00 Ft"}}]
[null,"Szállás","Áram",{"v":44,"d":"44.00 Ft"},{"v":56,"d":"56.00 Ft"},{"$f":"KöltségekTáblázat[[#This Row],[Tervezett]]-KöltségekTáblázat[[#This Row],[Tényleges]]","v":{"v":-12,"d":"-12.00 Ft"}}]
[null,"Szállás","Gáz",{"v":22,"d":"22.00 Ft"},{"v":28,"d":"28.00 Ft"},{"$f":"KöltségekTáblázat[[#This Row],[Tervezett]]-KöltségekTáblázat[[#This Row],[Tényleges]]","v":{"v":-6,"d":"-6.00 Ft"}}]
[null,"Szállás","Víz és csatornázás",{"v":8,"d":"8.00 Ft"},{"v":8,"d":"8.00 Ft"},{"$f":"KöltségekTáblázat[[#This Row],[Tervezett]]-KöltségekTáblázat[[#This Row],[Tényleges]]","v":{"v":0,"d":"0.00 Ft"}}]
[null,"Szállás","Kábeltévé",{"v":34,"d":"34.00 Ft"},{"v":34,"d":"34.00 Ft"},{"$f":"KöltségekTáblázat[[#This Row],[Tervezett]]-KöltségekTáblázat[[#This Row],[Tényleges]]","v":{"v":0,"d":"0.00 Ft"}}]
[null,"Szállás","Szemétdíj",{"v":10,"d":"10.00 Ft"},{"v":10,"d":"10.00 Ft"},{"$f":"KöltségekTáblázat[[#This Row],[Tervezett]]-KöltségekTáblázat[[#This Row],[Tényleges]]","v":{"v":0,"d":"0.00 Ft"}}]
[null,"Szállás","Karbantartás és javítások",{"v":23,"d":"23.00 Ft"},{"v":0,"d":"0.00 Ft"},{"$f":"KöltségekTáblázat[[#This Row],[Tervezett]]-KöltségekTáblázat[[#This Row],[Tényleges]]","v":{"v":23,"d":"23.00 Ft"}}]
[null,"Szállás","Kellékek",{"v":0,"d":"0.00 Ft"},{"v":0,"d":"0.00 Ft"},{"$f":"KöltségekTáblázat[[#This Row],[Tervezett]]-KöltségekTáblázat[[#This Row],[Tényleges]]","v":{"v":0,"d":"0.00 Ft"}}]
[null,"Szállás","Egyéb",{"v":0,"d":"0.00 Ft"},{"v":0,"d":"0.00 Ft"},{"$f":"KöltségekTáblázat[[#This Row],[Tervezett]]-KöltségekTáblázat[[#This Row],[Tényleges]]","v":{"v":0,"d":"0.00 Ft"}}]
[null,"Közlekedés","1. kocsi költségei",{"v":16,"d":"16.00 Ft"},{"v":66,"d":"66.00 Ft"},{"$f":"KöltségekTáblázat[[#This Row],[Tervezett]]-KöltségekTáblázat[[#This Row],[Tényleges]]","v":{"v":-50,"d":"-50.00 Ft"}}]
[null,"Közlekedés","2. kocsi költségei",{"v":35,"d":"35.00 Ft"},{"v":42,"d":"42.00 Ft"},{"$f":"KöltségekTáblázat[[#This Row],[Tervezett]]-KöltségekTáblázat[[#This Row],[Tényleges]]","v":{"v":-7,"d":"-7.00 Ft"}}]
[null,"Közlekedés","Busz/taxi",{"v":1,"d":"1.00 Ft"},{"v":62,"d":"62.00 Ft"},{"$f":"KöltségekTáblázat[[#This Row],[Tervezett]]-KöltségekTáblázat[[#This Row],[Tényleges]]","v":{"v":-61,"d":"-61.00 Ft"}}]
[null,"Közlekedés","Biztosítás",{"v":91,"d":"91.00 Ft"},{"v":27,"d":"27.00 Ft"},{"$f":"KöltségekTáblázat[[#This Row],[Tervezett]]-KöltségekTáblázat[[#This Row],[Tényleges]]","v":{"v":64,"d":"64.00 Ft"}}]
[null,"Közlekedés","Engedélyek",{"v":80,"d":"80.00 Ft"},{"v":89,"d":"89.00 Ft"},{"$f":"KöltségekTáblázat[[#This Row],[Tervezett]]-KöltségekTáblázat[[#This Row],[Tényleges]]","v":{"v":-9,"d":"-9.00 Ft"}}]
[null,"Közlekedés","Üzemanyag",{"v":18,"d":"18.00 Ft"},{"v":93,"d":"93.00 Ft"},{"$f":"KöltségekTáblázat[[#This Row],[Tervezett]]-KöltségekTáblázat[[#This Row],[Tényleges]]","v":{"v":-75,"d":"-75.00 Ft"}}]
[null,"Közlekedés","Karbantartás",{"v":34,"d":"34.00 Ft"},{"v":37,"d":"37.00 Ft"},{"$f":"KöltségekTáblázat[[#This Row],[Tervezett]]-KöltségekTáblázat[[#This Row],[Tényleges]]","v":{"v":-3,"d":"-3.00 Ft"}}]
[null,"Közlekedés","Egyéb",{"v":83,"d":"83.00 Ft"},{"v":61,"d":"61.00 Ft"},{"$f":"KöltségekTáblázat[[#This Row],[Tervezett]]-KöltségekTáblázat[[#This Row],[Tényleges]]","v":{"v":22,"d":"22.00 Ft"}}]
[null,"Biztosítás","Otthon",{"v":48,"d":"48.00 Ft"},{"v":63,"d":"63.00 Ft"},{"$f":"KöltségekTáblázat[[#This Row],[Tervezett]]-KöltségekTáblázat[[#This Row],[Tényleges]]","v":{"v":-15,"d":"-15.00 Ft"}}]
[null,"Biztosítás","Egészség",{"v":21,"d":"21.00 Ft"},{"v":44,"d":"44.00 Ft"},{"$f":"KöltségekTáblázat[[#This Row],[Tervezett]]-KöltségekTáblázat[[#This Row],[Tényleges]]","v":{"v":-23,"d":"-23.00 Ft"}}]
[null,"Biztosítás","Élet",{"v":35,"d":"35.00 Ft"},{"v":65,"d":"65.00 Ft"},{"$f":"KöltségekTáblázat[[#This Row],[Tervezett]]-KöltségekTáblázat[[#This Row],[Tényleges]]","v":{"v":-30,"d":"-30.00 Ft"}}]
[null,"Biztosítás","Egyéb",{"v":14,"d":"14.00 Ft"},{"v":75,"d":"75.00 Ft"},{"$f":"KöltségekTáblázat[[#This Row],[Tervezett]]-KöltségekTáblázat[[#This Row],[Tényleges]]","v":{"v":-61,"d":"-61.00 Ft"}}]
[null,"Élelmiszer","Élelmiszer",{"v":79,"d":"79.00 Ft"},{"v":0,"d":"0.00 Ft"},{"$f":"KöltségekTáblázat[[#This Row],[Tervezett]]-KöltségekTáblázat[[#This Row],[Tényleges]]","v":{"v":79,"d":"79.00 Ft"}}]
[null,"Élelmiszer","Házon kívüli étkezések",{"v":56,"d":"56.00 Ft"},{"v":50,"d":"50.00 Ft"},{"$f":"KöltségekTáblázat[[#This Row],[Tervezett]]-KöltségekTáblázat[[#This Row],[Tényleges]]","v":{"v":6,"d":"6.00 Ft"}}]
[null,"Élelmiszer","Egyéb",{"v":96,"d":"96.00 Ft"},{"v":23,"d":"23.00 Ft"},{"$f":"KöltségekTáblázat[[#This Row],[Tervezett]]-KöltségekTáblázat[[#This Row],[Tényleges]]","v":{"v":73,"d":"73.00 Ft"}}]
[null,"Gyerekek","Egészségügy",{"v":90,"d":"90.00 Ft"},{"v":90,"d":"90.00 Ft"},{"$f":"KöltségekTáblázat[[#This Row],[Tervezett]]-KöltségekTáblázat[[#This Row],[Tényleges]]","v":{"v":0,"d":"0.00 Ft"}}]
[null,"Gyerekek","Ruhanemű",{"v":33,"d":"33.00 Ft"},{"v":30,"d":"30.00 Ft"},{"$f":"KöltségekTáblázat[[#This Row],[Tervezett]]-KöltségekTáblázat[[#This Row],[Tényleges]]","v":{"v":3,"d":"3.00 Ft"}}]
[null,"Gyerekek","Iskolai kiadások",{"v":86,"d":"86.00 Ft"},{"v":64,"d":"64.00 Ft"},{"$f":"KöltségekTáblázat[[#This Row],[Tervezett]]-KöltségekTáblázat[[#This Row],[Tényleges]]","v":{"v":22,"d":"22.00 Ft"}}]
[null,"Gyerekek","Iskolai kellékek",{"v":76,"d":"76.00 Ft"},{"v":2,"d":"2.00 Ft"},{"$f":"KöltségekTáblázat[[#This Row],[Tervezett]]-KöltségekTáblázat[[#This Row],[Tényleges]]","v":{"v":74,"d":"74.00 Ft"}}]
[null,"Gyerekek","Szervezeti határidők és díjak",{"v":60,"d":"60.00 Ft"},{"v":90,"d":"90.00 Ft"},{"$f":"KöltségekTáblázat[[#This Row],[Tervezett]]-KöltségekTáblázat[[#This Row],[Tényleges]]","v":{"v":-30,"d":"-30.00 Ft"}}]
[null,"Gyerekek","Ebédpénz",{"v":37,"d":"37.00 Ft"},{"v":60,"d":"60.00 Ft"},{"$f":"KöltségekTáblázat[[#This Row],[Tervezett]]-KöltségekTáblázat[[#This Row],[Tényleges]]","v":{"v":-23,"d":"-23.00 Ft"}}]
[null,"Gyerekek","Gyermekfelügyelet",{"v":22,"d":"22.00 Ft"},{"v":70,"d":"70.00 Ft"},{"$f":"KöltségekTáblázat[[#This Row],[Tervezett]]-KöltségekTáblázat[[#This Row],[Tényleges]]","v":{"v":-48,"d":"-48.00 Ft"}}]
[null,"Gyerekek","Játékok",{"v":80,"d":"80.00 Ft"},{"v":21,"d":"21.00 Ft"},{"$f":"KöltségekTáblázat[[#This Row],[Tervezett]]-KöltségekTáblázat[[#This Row],[Tényleges]]","v":{"v":59,"d":"59.00 Ft"}}]
[null,"Gyerekek","Egyéb",{"v":65,"d":"65.00 Ft"},{"v":20,"d":"20.00 Ft"},{"$f":"KöltségekTáblázat[[#This Row],[Tervezett]]-KöltségekTáblázat[[#This Row],[Tényleges]]","v":{"v":45,"d":"45.00 Ft"}}]
[null,"Háziállatok","Élelmiszer",{"v":37,"d":"37.00 Ft"},{"v":34,"d":"34.00 Ft"},{"$f":"KöltségekTáblázat[[#This Row],[Tervezett]]-KöltségekTáblázat[[#This Row],[Tényleges]]","v":{"v":3,"d":"3.00 Ft"}}]
[null,"Háziállatok","Egészségügy",{"v":74,"d":"74.00 Ft"},{"v":86,"d":"86.00 Ft"},{"$f":"KöltségekTáblázat[[#This Row],[Tervezett]]-KöltségekTáblázat[[#This Row],[Tényleges]]","v":{"v":-12,"d":"-12.00 Ft"}}]
[null,"Háziállatok","Ápolás",{"v":80,"d":"80.00 Ft"},{"v":92,"d":"92.00 Ft"},{"$f":"KöltségekTáblázat[[#This Row],[Tervezett]]-KöltségekTáblázat[[#This Row],[Tényleges]]","v":{"v":-12,"d":"-12.00 Ft"}}]
[null,"Háziállatok","Játékok",{"v":61,"d":"61.00 Ft"},{"v":22,"d":"22.00 Ft"},{"$f":"KöltségekTáblázat[[#This Row],[Tervezett]]-KöltségekTáblázat[[#This Row],[Tényleges]]","v":{"v":39,"d":"39.00 Ft"}}]
[null,"Háziállatok","Egyéb",{"v":83,"d":"83.00 Ft"},{"v":51,"d":"51.00 Ft"},{"$f":"KöltségekTáblázat[[#This Row],[Tervezett]]-KöltségekTáblázat[[#This Row],[Tényleges]]","v":{"v":32,"d":"32.00 Ft"}}]
[null,"Kozmetikumok","Egészségügy",{"v":28,"d":"28.00 Ft"},{"v":10,"d":"10.00 Ft"},{"$f":"KöltségekTáblázat[[#This Row],[Tervezett]]-KöltségekTáblázat[[#This Row],[Tényleges]]","v":{"v":18,"d":"18.00 Ft"}}]
[null,"Kozmetikumok","Haj- és körömápolás",{"v":25,"d":"25.00 Ft"},{"v":81,"d":"81.00 Ft"},{"$f":"KöltségekTáblázat[[#This Row],[Tervezett]]-KöltségekTáblázat[[#This Row],[Tényleges]]","v":{"v":-56,"d":"-56.00 Ft"}}]
[null,"Kozmetikumok","Ruhanemű",{"v":59,"d":"59.00 Ft"},{"v":72,"d":"72.00 Ft"},{"$f":"KöltségekTáblázat[[#This Row],[Tervezett]]-KöltségekTáblázat[[#This Row],[Tényleges]]","v":{"v":-13,"d":"-13.00 Ft"}}]
[null,"Kozmetikumok","Tisztító",{"v":89,"d":"89.00 Ft"},{"v":90,"d":"90.00 Ft"},{"$f":"KöltségekTáblázat[[#This Row],[Tervezett]]-KöltségekTáblázat[[#This Row],[Tényleges]]","v":{"v":-1,"d":"-1.00 Ft"}}]
[null,"Kozmetikumok","Egészségklub",{"v":78,"d":"78.00 Ft"},{"v":48,"d":"48.00 Ft"},{"$f":"KöltségekTáblázat[[#This Row],[Tervezett]]-KöltségekTáblázat[[#This Row],[Tényleges]]","v":{"v":30,"d":"30.00 Ft"}}]
[null,"Kozmetikumok","Szervezeti tagdíjak",{"v":6,"d":"6.00 Ft"},{"v":73,"d":"73.00 Ft"},{"$f":"KöltségekTáblázat[[#This Row],[Tervezett]]-KöltségekTáblázat[[#This Row],[Tényleges]]","v":{"v":-67,"d":"-67.00 Ft"}}]
[null,"Kozmetikumok","Egyéb",{"v":80,"d":"80.00 Ft"},{"v":66,"d":"66.00 Ft"},{"$f":"KöltségekTáblázat[[#This Row],[Tervezett]]-KöltségekTáblázat[[#This Row],[Tényleges]]","v":{"v":14,"d":"14.00 Ft"}}]
[null,"Szórakozás","Videó/DVD",{"v":11,"d":"11.00 Ft"},{"v":29,"d":"29.00 Ft"},{"$f":"KöltségekTáblázat[[#This Row],[Tervezett]]-KöltségekTáblázat[[#This Row],[Tényleges]]","v":{"v":-18,"d":"-18.00 Ft"}}]
[null,"Szórakozás","CD-k",{"v":77,"d":"77.00 Ft"},{"v":32,"d":"32.00 Ft"},{"$f":"KöltségekTáblázat[[#This Row],[Tervezett]]-KöltségekTáblázat[[#This Row],[Tényleges]]","v":{"v":45,"d":"45.00 Ft"}}]
[null,"Szórakozás","Filmek",{"v":71,"d":"71.00 Ft"},{"v":43,"d":"43.00 Ft"},{"$f":"KöltségekTáblázat[[#This Row],[Tervezett]]-KöltségekTáblázat[[#This Row],[Tényleges]]","v":{"v":28,"d":"28.00 Ft"}}]
[null,"Szórakozás","Koncertek",{"v":64,"d":"64.00 Ft"},{"v":21,"d":"21.00 Ft"},{"$f":"KöltségekTáblázat[[#This Row],[Tervezett]]-KöltségekTáblázat[[#This Row],[Tényleges]]","v":{"v":43,"d":"43.00 Ft"}}]
[null,"Szórakozás","Sportesemények",{"v":47,"d":"47.00 Ft"},{"v":57,"d":"57.00 Ft"},{"$f":"KöltségekTáblázat[[#This Row],[Tervezett]]-KöltségekTáblázat[[#This Row],[Tényleges]]","v":{"v":-10,"d":"-10.00 Ft"}}]
[null,"Szórakozás","Színház",{"v":28,"d":"28.00 Ft"},{"v":1,"d":"1.00 Ft"},{"$f":"KöltségekTáblázat[[#This Row],[Tervezett]]-KöltségekTáblázat[[#This Row],[Tényleges]]","v":{"v":27,"d":"27.00 Ft"}}]
[null,"Szórakozás","Egyéb",{"v":13,"d":"13.00 Ft"},{"v":42,"d":"42.00 Ft"},{"$f":"KöltségekTáblázat[[#This Row],[Tervezett]]-KöltségekTáblázat[[#This Row],[Tényleges]]","v":{"v":-29,"d":"-29.00 Ft"}}]
[null,"Hitelek","Személyes",{"v":65,"d":"65.00 Ft"},{"v":6,"d":"6.00 Ft"},{"$f":"KöltségekTáblázat[[#This Row],[Tervezett]]-KöltségekTáblázat[[#This Row],[Tényleges]]","v":{"v":59,"d":"59.00 Ft"}}]
[null,"Hitelek","Diák",{"v":100,"d":"100.00 Ft"},{"v":36,"d":"36.00 Ft"},{"$f":"KöltségekTáblázat[[#This Row],[Tervezett]]-KöltségekTáblázat[[#This Row],[Tényleges]]","v":{"v":64,"d":"64.00 Ft"}}]
[null,"Hitelek","Hitelkártya",{"v":29,"d":"29.00 Ft"},{"v":69,"d":"69.00 Ft"},{"$f":"KöltségekTáblázat[[#This Row],[Tervezett]]-KöltségekTáblázat[[#This Row],[Tényleges]]","v":{"v":-40,"d":"-40.00 Ft"}}]
[null,"Hitelek","Hitelkártya",{"v":64,"d":"64.00 Ft"},{"v":3,"d":"3.00 Ft"},{"$f":"KöltségekTáblázat[[#This Row],[Tervezett]]-KöltségekTáblázat[[#This Row],[Tényleges]]","v":{"v":61,"d":"61.00 Ft"}}]
[null,"Hitelek","Hitelkártya",{"v":34,"d":"34.00 Ft"},{"v":35,"d":"35.00 Ft"},{"$f":"KöltségekTáblázat[[#This Row],[Tervezett]]-KöltségekTáblázat[[#This Row],[Tényleges]]","v":{"v":-1,"d":"-1.00 Ft"}}]
[null,"Hitelek","Egyéb",{"v":38,"d":"38.00 Ft"},{"v":52,"d":"52.00 Ft"},{"$f":"KöltségekTáblázat[[#This Row],[Tervezett]]-KöltségekTáblázat[[#This Row],[Tényleges]]","v":{"v":-14,"d":"-14.00 Ft"}}]
[null,"Adók","Központi",{"v":84,"d":"84.00 Ft"},{"v":36,"d":"36.00 Ft"},{"$f":"KöltségekTáblázat[[#This Row],[Tervezett]]-KöltségekTáblázat[[#This Row],[Tényleges]]","v":{"v":48,"d":"48.00 Ft"}}]
[null,"Adók","Állami",{"v":2,"d":"2.00 Ft"},{"v":83,"d":"83.00 Ft"},{"$f":"KöltségekTáblázat[[#This Row],[Tervezett]]-KöltségekTáblázat[[#This Row],[Tényleges]]","v":{"v":-81,"d":"-81.00 Ft"}}]
[null,"Adók","Helyi",{"v":40,"d":"40.00 Ft"},{"v":20,"d":"20.00 Ft"},{"$f":"KöltségekTáblázat[[#This Row],[Tervezett]]-KöltségekTáblázat[[#This Row],[Tényleges]]","v":{"v":20,"d":"20.00 Ft"}}]
[null,"Adók","Egyéb",{"v":35,"d":"35.00 Ft"},{"v":72,"d":"72.00 Ft"},{"$f":"KöltségekTáblázat[[#This Row],[Tervezett]]-KöltségekTáblázat[[#This Row],[Tényleges]]","v":{"v":-37,"d":"-37.00 Ft"}}]
[null,"Megtakarítások vagy befektetések","Nyugdíjszámla",{"v":34,"d":"34.00 Ft"},{"v":20,"d":"20.00 Ft"},{"$f":"KöltségekTáblázat[[#This Row],[Tervezett]]-KöltségekTáblázat[[#This Row],[Tényleges]]","v":{"v":14,"d":"14.00 Ft"}}]
[null,"Megtakarítások vagy befektetések","Befektetési számla",{"v":68,"d":"68.00 Ft"},{"v":98,"d":"98.00 Ft"},{"$f":"KöltségekTáblázat[[#This Row],[Tervezett]]-KöltségekTáblázat[[#This Row],[Tényleges]]","v":{"v":-30,"d":"-30.00 Ft"}}]
[null,"Megtakarítások vagy befektetések","Egyetem",{"v":89,"d":"89.00 Ft"},{"v":68,"d":"68.00 Ft"},{"$f":"KöltségekTáblázat[[#This Row],[Tervezett]]-KöltségekTáblázat[[#This Row],[Tényleges]]","v":{"v":21,"d":"21.00 Ft"}}]
[null,"Megtakarítások vagy befektetések","Egyéb",{"v":82,"d":"82.00 Ft"},{"v":26,"d":"26.00 Ft"},{"$f":"KöltségekTáblázat[[#This Row],[Tervezett]]-KöltségekTáblázat[[#This Row],[Tényleges]]","v":{"v":56,"d":"56.00 Ft"}}]
[null,"Ajándékok és adományok","Jótékonyság 1",{"v":41,"d":"41.00 Ft"},{"v":85,"d":"85.00 Ft"},{"$f":"KöltségekTáblázat[[#This Row],[Tervezett]]-KöltségekTáblázat[[#This Row],[Tényleges]]","v":{"v":-44,"d":"-44.00 Ft"}}]
[null,"Ajándékok és adományok","Jótékonyság 2",{"v":0,"d":"0.00 Ft"},{"v":69,"d":"69.00 Ft"},{"$f":"KöltségekTáblázat[[#This Row],[Tervezett]]-KöltségekTáblázat[[#This Row],[Tényleges]]","v":{"v":-69,"d":"-69.00 Ft"}}]
[null,"Ajándékok és adományok","Jótékonyság 3",{"v":2,"d":"2.00 Ft"},{"v":57,"d":"57.00 Ft"},{"$f":"KöltségekTáblázat[[#This Row],[Tervezett]]-KöltségekTáblázat[[#This Row],[Tényleges]]","v":{"v":-55,"d":"-55.00 Ft"}}]
[null,"Jogi kiadások","Ügyvéd",{"v":7,"d":"7.00 Ft"},{"v":98,"d":"98.00 Ft"},{"$f":"KöltségekTáblázat[[#This Row],[Tervezett]]-KöltségekTáblázat[[#This Row],[Tényleges]]","v":{"v":-91,"d":"-91.00 Ft"}}]
[null,"Jogi kiadások","Tartásdíj",{"v":39,"d":"39.00 Ft"},{"v":85,"d":"85.00 Ft"},{"$f":"KöltségekTáblázat[[#This Row],[Tervezett]]-KöltségekTáblázat[[#This Row],[Tényleges]]","v":{"v":-46,"d":"-46.00 Ft"}}]
[null,"Jogi kiadások","Kártérítés behajtása",{"v":78,"d":"78.00 Ft"},{"v":84,"d":"84.00 Ft"},{"$f":"KöltségekTáblázat[[#This Row],[Tervezett]]-KöltségekTáblázat[[#This Row],[Tényleges]]","v":{"v":-6,"d":"-6.00 Ft"}}]
[null,"Jogi kiadások","Egyéb",{"v":93,"d":"93.00 Ft"},{"v":71,"d":"71.00 Ft"},{"$f":"KöltségekTáblázat[[#This Row],[Tervezett]]-KöltségekTáblázat[[#This Row],[Tényleges]]","v":{"v":22,"d":"22.00 Ft"}}]
[null,"Összesen",{"$nulls":3},{"$f":"SUBTOTAL(109,KöltségekTáblázat[Különbség])","v":{"v":-75,"d":"-75.00 Ft"}}]